bitfinex-derivatives/quotes_ETHF0:USTF0_20250828
["timestamp","ask_amount","ask_price","bid_price","bid_amount"]
[1756393332775,0.2718,4574.8,4574.7,20.326]
[1756393332972,0.6776,4574.8,4574.7,20.7207]
[1756393333176,0.6776,4574.8,4574.7,0.6627]
[1756393333371,0.6776,4574.8,4574.7,20.7207]
[1756393333571,0.6776,4574.8,4574.7,0.268]
[1756393333872,0.6776,4574.5,4574.4,23.2658]
[1756393334170,0.6776,4573.5,4573.4,0.6627]
[1756393334476,0.2718,4573.5,4573.2,3.2078]
[1756393334677,0.6776,4573.4,4573.3,0.268]
[1756393334875,0.6776,4573.4,4573.3,0.6627]
[1756393335076,0.4058,4573.4,4573.3,0.6627]
[1756393335374,0.6776,4573.4,4573.3,0.6627]
[1756393336472,0.6776,4573.4,4572.5,31.486]
[1756393336473,0.4058,4573.3,4572.7,3.6025]
[1756393336679,0.6776,4572.8,4572.7,3.8705]
[1756393337070,0.6776,4572.8,4572.7,0.6627]
[1756393339175,0.6776,4572.8,4572.7,4.6627]
[1756393340772,0.6776,4572.8,4572.7,0.6627]
[1756393341875,3.2078,4573.7,4572.7,0.268]
[1756393342070,3.2078,4573.7,4573.0,3.2078]
[1756393342273,3.2078,4573.7,4573.1,20.062]
[1756393342776,3.2078,4574.2,4573.1,20.062]
[1756393343781,3.2078,4573.6,4573.0,3.2078]
[1756393343972,3.2078,4573.6,4572.6,3.08]
[1756393344172,3.2078,4573.6,4572.8,3.2078]
[1756393347182,3.2078,4573.6,4572.8,16.3118]
[1756393347481,3.2078,4573.6,4572.3,3.2078]
[1756393347482,0.21867,4573.5,4572.3,3.2078]
[1756393347678,3.2078,4573.0,4572.3,3.2078]
[1756393347984,3.2078,4573.0,4571.9,12.799]
[1756393348186,3.2078,4573.0,4571.7,3.2078]
[1756393348379,3.2078,4572.0,4571.2,3.2078]
[1756393348580,3.2078,4572.0,4570.6,23.2718]
[1756393348878,0.21876,4571.9,4570.6,23.2718]
[1756393349480,3.2078,4572.0,4570.6,23.2718]
[1756393349685,0.21876,4571.9,4570.6,23.2718]
[1756393350083,3.2078,4572.0,4570.6,23.2718]
[1756393350580,3.2078,4572.0,4570.7,0.61253]
[1756393350783,3.2078,4572.0,4570.7,0.21876]
[1756393350983,3.2078,4572.0,4570.6,23.2718]
[1756393351184,3.2078,4572.0,4570.7,0.21876]
[1756393351587,3.2078,4572.0,4570.8,0.39376]
[1756393351785,3.2078,4572.0,4570.6,23.2718]
[1756393351987,3.2078,4572.0,4570.7,0.21876]
[1756393352389,3.2078,4572.0,4570.8,0.21875]
[1756393352687,3.2078,4572.0,4570.7,0.21876]
[1756393352888,3.2078,4572.0,4570.8,0.39376]
[1756393353186,3.2078,4572.0,4571.1,3.2078]
[1756393353389,3.2078,4572.5,4571.1,3.2078]
[1756393354787,3.2078,4571.9,4571.1,3.2078]
[1756393355584,3.42655,4571.9,4571.1,3.2078]
[1756393355989,3.2078,4571.9,4571.1,3.2078]
[1756393359990,3.2078,4571.9,4571.1,3.60154]
[1756393360185,3.2078,4571.9,4571.3,0.39372]
[1756393360386,3.2078,4572.4,4571.4,0.39371]
[1756393360688,3.2078,4572.4,4571.6,3.2078]
[1756393361184,3.2078,4573.5,4572.3,3.2078]
[1756393361590,3.2078,4573.5,4572.5,3.2078]
[1756393363983,3.2078,4573.5,4572.5,3.60142]
[1756393364789,3.2078,4573.5,4572.5,3.2078]
[1756393364993,3.2078,4573.5,4572.6,20.069]
[1756393365691,3.2078,4573.5,4572.5,3.2078]
[1756393365893,0.73702813,4573.4,4571.9,23.2758]
[1756393366190,0.73702813,4573.4,4571.9,3.2078]
[1756393366191,3.2078,4572.6,4571.9,3.2078]
[1756393366398,0.51834159,4572.5,4571.7,20.068]
[1756393366592,0.51834159,4572.4,4571.7,20.068]
[1756393366786,0.51834159,4572.3,4571.7,20.068]
[1756393367097,3.2078,4572.1,4571.1,3.2078]
[1756393367281,0.51811559,4572.0,4571.1,3.2078]
[1756393367480,3.2078,4572.1,4571.1,3.2078]
[1756393367684,0.51808302,4572.0,4571.1,3.2078]
[1756393367883,3.2078,4572.1,4571.1,3.2078]
[1756393368090,0.51807427,4572.0,4571.1,3.2078]
[1756393368286,3.2078,4572.1,4571.1,3.2078]
[1756393368486,0.5179956,4572.0,4571.1,3.2078]
[1756393368692,3.2078,4572.1,4571.1,3.2078]
[1756393368886,0.5179376,4572.0,4571.1,3.2078]
[1756393369085,3.2078,4572.1,4571.1,3.2078]
[1756393369287,3.2078,4572.1,4571.4,0.39371]
[1756393369588,3.2078,4573.1,4571.9,3.2078]
[1756393369891,0.51735927,4573.0,4571.9,3.2078]
[1756393370092,0.51735927,4572.9,4571.9,3.2078]
[1756393370288,0.51735927,4572.8,4571.9,3.2078]
[1756393370486,0.51735927,4572.7,4571.4,3.2078]
[1756393370686,3.2078,4573.1,4571.4,3.2078]
[1756393370886,3.2078,4572.6,4571.4,3.2078]
[1756393371089,0.51741534,4572.5,4571.4,3.2078]
[1756393371288,0.51741534,4572.4,4571.4,3.2078]
[1756393371599,0.51741534,4572.3,4571.4,3.2078]
[1756393371794,0.51741534,4572.2,4571.4,3.2078]
[1756393371995,3.2078,4572.6,4571.4,3.2078]
[1756393372195,0.51741193,4572.5,4571.4,3.2078]
[1756393372496,0.51741193,4572.4,4571.4,3.2078]
[1756393372687,0.51741193,4572.3,4571.4,3.2078]
[1756393372893,0.51741193,4572.2,4571.4,3.2078]
[1756393373100,3.2078,4572.6,4571.4,3.60151]
[1756393373289,0.51769986,4572.5,4571.4,3.2078]
[1756393373489,0.51769986,4572.4,4571.4,3.2078]
[1756393373691,3.2078,4572.6,4571.4,3.2078]
[1756393373893,0.51769333,4572.5,4571.4,3.2078]
[1756393374198,0.51769333,4572.4,4571.5,0.39371]
[1756393374398,3.2078,4572.6,4571.5,0.39371]
[1756393374595,0.51772049,4572.5,4571.4,3.2078]
[1756393374898,0.51772049,4572.4,4571.4,3.2078]
[1756393375099,0.51783237,4572.3,4571.4,3.2078]
[1756393375401,3.2078,4572.6,4571.4,3.2078]
[1756393375698,0.51784614,4572.5,4571.6,0.3937]
[1756393375999,3.2078,4572.6,4571.4,3.2078]
[1756393376303,3.2078,4573.6,4572.5,3.2078]
[1756393376494,0.51814342,4573.5,4572.8,0.39359]
[1756393376701,3.2078,4573.6,4572.8,0.39359]
[1756393376898,0.5183737,4573.5,4572.8,0.39359]
[1756393377099,3.2078,4573.6,4572.8,0.39359]
[1756393377301,0.5184646,4573.5,4572.9,0.39359]
[1756393377501,3.2078,4574.1,4573.1,3.2078]
[1756393377802,0.51864265,4574.0,4573.1,3.2078]
[1756393378002,0.51864265,4573.9,4573.1,3.2078]
[1756393378297,0.51864265,4573.8,4573.1,3.2078]
[1756393378503,0.518692,4573.7,4572.6,23.67041]
[1756393378704,3.2078,4574.1,4572.6,23.67041]
[1756393378903,0.51871284,4574.0,4572.6,23.2768]
[1756393379114,3.2078,4573.6,4572.6,23.67041]
[1756393379606,3.2078,4573.6,4572.7,0.3936]
[1756393379805,3.2078,4573.6,4572.6,23.2768]
[1756393380214,3.2078,4573.6,4572.6,23.67041]
[1756393380406,3.2078,4573.6,4572.6,23.2768]
[1756393380608,3.2078,4573.6,4572.9,0.39358]
[1756393381310,3.2078,4573.6,4572.6,23.67041]
[1756393381810,3.2078,4573.6,4572.7,0.3936]
[1756393382116,3.2078,4573.6,4572.1,3.2078]
[1756393382317,3.2078,4573.1,4572.1,3.2078]
[1756393382611,0.51840184,4573.0,4572.1,3.2078]
[1756393382810,0.51840184,4572.9,4572.1,3.2078]
[1756393383006,3.2078,4573.1,4572.1,3.2078]
[1756393383202,0.51856961,4573.0,4572.1,3.2078]
[1756393383406,0.51857151,4572.9,4571.5,3.2078]
[1756393383614,3.2078,4572.3,4571.5,3.2078]
[1756393388015,3.2078,4572.9,4571.5,3.2078]
[1756393388514,3.2078,4572.9,4571.7,0.39369]
[1756393388715,3.2078,4572.9,4571.7,0.39368]
[1756393388912,3.2078,4572.9,4571.8,0.39368]
[1756393389112,3.2078,4572.9,4571.9,19.147]
[1756393389313,3.2078,4572.9,4572.0,20.071]
[1756393389708,3.2078,4572.9,4572.0,23.2788]
[1756393391216,3.2078,4572.9,4572.0,3.2078]
[1756393392122,3.2078,4572.9,4571.6,20.068]
[1756393393817,3.2078,4572.9,4571.6,20.4617]
[1756393394136,3.2078,4572.9,4571.6,20.068]
[1756393395127,3.2078,4572.9,4571.7,0.21871]
[1756393395322,3.2078,4572.9,4571.9,3.60147]
[1756393395520,3.2078,4572.9,4571.9,3.2078]
[1756393396021,3.2078,4572.9,4571.9,44.0078]
[1756393396219,3.2078,4572.9,4571.9,44.22649999]
[1756393396524,3.2078,4572.9,4571.9,44.62016999]
[1756393396715,3.2078,4572.9,4571.9,44.22649999]
[1756393397424,3.2078,4572.9,4572.0,0.61235999]
[1756393397621,3.2078,4572.9,4571.9,44.0078]
[1756393397819,3.2078,4572.9,4572.0,0.21869999]
[1756393398217,3.2078,4572.9,4571.9,44.0078]
[1756393398525,3.2078,4572.9,4572.0,20.067]
[1756393400017,3.2078,4572.9,4571.9,3.2078]
[1756393400226,3.2078,4572.9,4572.0,15.246]
[1756393401124,3.2078,4572.9,4571.9,3.2078]
[1756393401921,0.2613,4572.0,4571.9,3.472]
[1756393402114,0.2613,4572.0,4571.7,15.4921]
[1756393402115,0.3965,4571.9,4571.6,20.067]
[1756393402319,0.6578,4571.7,4571.6,20.067]
[1756393402727,0.6578,4571.7,4571.6,20.7033]
[1756393403419,0.6578,4571.7,4571.6,0.2642]
[1756393403627,0.2613,4571.3,4571.2,31.8811]
[1756393403814,0.6578,4571.3,4571.2,31.8811]
[1756393404022,0.6578,4571.3,4571.2,0.6363]
[1756393404520,3.2078,4571.8,4571.2,0.2642]
[1756393404823,3.2078,4571.8,4571.6,0.6363]
[1756393405023,3.8656,4572.3,4572.2,0.6363]
[1756393405227,3.8656,4572.3,4572.2,0.2642]
[1756393405419,0.3965,4572.2,4571.7,20.4391]
[1756393405615,0.2613,4571.8,4571.7,0.2642]
[1756393405821,0.6578,4571.8,4571.7,0.2642]
[1756393406020,0.3965,4572.2,4572.1,0.2642]
[1756393406520,3.2078,4572.3,4572.1,0.2642]
[1756393406521,3.2078,4572.3,4572.1,0.6363]
[1756393406720,3.2078,4572.3,4571.6,10.802]
[1756393406721,0.3965,4572.6,4572.5,0.2642]
[1756393407221,0.6578,4573.2,4573.1,0.2642]
[1756393407421,0.6578,4573.2,4573.1,0.6363]
[1756393407622,0.2613,4573.2,4573.1,0.6363]
[1756393407929,3.2078,4573.8,4573.5,0.6363]
[1756393408227,3.8656,4573.8,4573.7,0.6363]
[1756393409818,7.42644,4573.8,4572.4,3.2078]
[1756393410018,3.2078,4573.8,4572.4,3.5799]
[1756393410221,0.73758205,4573.7,4572.4,3.5799]
[1756393410421,0.51893683,4573.6,4572.4,3.5799]
[1756393410628,0.3965,4573.5,4572.5,0.3721]
[1756393411223,0.2613,4572.6,4572.5,0.6363]
[1756393411423,0.6578,4572.6,4572.5,0.6363]
[1756393411817,0.6578,4572.6,4571.5,0.39371]
[1756393411818,0.2613,4572.6,4572.0,0.3721]
[1756393412019,0.6578,4572.1,4572.0,0.2642]
[1756393412726,0.6578,4572.0,4571.9,3.2078]
[1756393412922,0.2613,4572.0,4571.4,31.508]
[1756393413127,0.6578,4571.5,4571.4,31.8801]
[1756393413328,3.2078,4572.3,4571.4,31.508]
[1756393413529,3.2078,4572.3,4571.4,31.8801]
[1756393413735,0.3965,4572.0,4571.4,31.8801]
[1756393417632,0.3965,4572.0,4571.9,0.6414]
[1756393417633,0.6381,4572.0,4571.9,0.6414]
[1756393417831,3.5901,4572.3,4571.9,0.2642]
[1756393418027,3.5901,4572.3,4572.2,0.619]
[1756393418233,3.8317,4572.3,4572.2,0.619]
[1756393419028,0.6239,4572.2,4572.1,0.2418]
[1756393419231,0.6239,4572.2,4571.5,0.3772]
[1756393419431,0.6239,4571.6,4571.5,0.3772]
[1756393419635,0.6239,4571.5,4571.4,0.619]
[1756393420038,0.6239,4571.5,4571.4,0.2418]
[1756393420336,0.6239,4571.5,4571.4,0.619]
[1756393420537,0.3823,4572.2,4571.4,0.619]
[1756393420733,0.6239,4571.5,4571.4,0.619]
[1756393421129,0.3823,4572.2,4571.5,0.3772]
[1756393421936,0.6239,4571.6,4571.5,0.619]
[1756393423840,0.6239,4571.6,4571.5,0.2418]
[1756393424039,0.6239,4571.6,4571.5,15.8938]
[1756393424740,0.6239,4571.6,4571.5,0.2418]
[1756393426342,0.2416,4570.9,4570.8,3.2078]
[1756393426542,0.6239,4570.9,4570.8,3.8268]
[1756393426742,0.2416,4570.4,4570.3,3.8268]
[1756393427042,0.6239,4570.4,4570.3,3.8268]
[1756393429540,0.2416,4569.8,4569.7,0.2418]
[1756393429747,0.2416,4569.8,4568.7,3.585]
[1756393430040,0.3823,4569.4,4568.2,0.3772]
[1756393430943,0.6239,4569.4,4569.3,0.619]
[1756393432740,0.6239,4569.4,4569.3,0.2418]
[1756393433034,0.6239,4569.4,4569.3,0.619]
[1756393434049,0.6239,4569.4,4568.8,0.3772]
[1756393434545,0.3823,4569.3,4568.7,19.0388]
[1756393434741,0.6239,4568.8,4568.7,19.2806]
[1756393434942,0.3823,4569.9,4568.7,3.8268]
[1756393435143,0.3823,4569.8,4568.8,0.3772]
[1756393435342,0.60115,4569.8,4568.8,0.3772]
[1756393435750,0.3823,4569.8,4568.8,0.3772]
[1756393436247,0.2416,4568.9,4568.8,0.619]
[1756393436449,0.3823,4569.2,4568.8,0.619]
[1756393436650,0.3823,4570.0,4568.9,0.3772]
[1756393436844,0.6239,4569.0,4568.9,0.619]
[1756393437948,0.6239,4569.0,4568.9,0.2418]
[1756393438546,0.3823,4568.9,4568.7,3.2078]
[1756393438749,0.6239,4568.8,4568.7,3.2078]
[1756393439148,0.6239,4568.8,4568.7,3.8268]
[1756393440242,3.2078,4569.5,4568.7,3.8268]
[1756393440447,3.5901,4569.5,4568.8,0.3772]
[1756393441149,0.6239,4568.9,4568.8,0.619]
[1756393442150,3.2078,4569.5,4568.8,0.619]
[1756393442360,0.3823,4569.4,4568.8,0.619]
[1756393443352,0.6239,4569.4,4569.3,0.2418]
[1756393443555,0.6239,4569.4,4569.3,0.619]
[1756393444054,0.6239,4569.4,4569.3,0.2418]
[1756393445151,0.2416,4569.4,4568.7,3.2078]
[1756393445351,0.6239,4568.8,4568.7,3.2078]
[1756393445552,0.2416,4568.3,4567.6,3.2078]
[1756393445859,4.665,4569.4,4567.0,3.2078]
[1756393445860,0.6239,4567.7,4567.0,3.2078]
[1756393446156,0.6112,4567.1,4567.0,3.82]
[1756393446556,0.6112,4567.9,4567.8,0.253]
[1756393447253,3.2078,4568.0,4567.9,0.3592]
[1756393447450,3.819,4568.0,4567.2,0.3592]
[1756393447651,0.6112,4568.0,4567.9,0.253]
[1756393447853,3.5817,4568.5,4567.9,0.6122]
[1756393448059,3.819,4568.5,4568.4,0.6122]
[1756393448755,3.2078,4568.5,4568.4,0.6122]
[1756393449550,0.3739,4569.0,4568.5,0.3592]
[1756393449750,0.6112,4568.6,4568.5,0.6122]
[1756393450454,0.2373,4568.6,4568.2,0.3592]
[1756393450656,0.2373,4568.3,4568.2,0.6122]
[1756393450854,3.2078,4569.1,4568.2,0.6122]
[1756393451055,0.3739,4569.0,4568.3,0.3592]
[1756393453560,0.2373,4568.4,4568.3,0.6122]
[1756393453766,0.2373,4568.0,4567.9,0.3592]
[1756393454259,0.2373,4567.6,4567.5,3.2078]
[1756393454467,0.6112,4567.6,4567.5,3.2078]
[1756393455158,0.2373,4567.6,4566.9,3.2078]
[1756393455364,0.3739,4567.5,4566.9,3.2078]
[1756393456164,3.2078,4567.9,4566.9,3.2078]
[1756393456363,0.3739,4567.8,4566.9,3.2078]
[1756393456565,3.2078,4567.9,4566.9,3.2078]
[1756393456962,0.3739,4567.8,4566.9,3.2078]
[1756393457157,0.3739,4567.8,4567.0,0.3592]
[1756393457868,0.6112,4567.8,4567.7,0.253]
[1756393458060,0.6112,4567.8,4566.7,20.085]
[1756393458061,3.2078,4568.4,4568.3,0.253]
[1756393458262,0.3739,4568.8,4568.3,0.6122]
[1756393458458,0.51883014,4568.7,4568.6,0.253]
[1756393458764,0.3739,4568.6,4567.8,0.3592]
[1756393459262,3.2078,4568.9,4568.8,0.253]
[1756393459559,0.3739,4569.3,4568.6,0.3592]
[1756393459759,0.52133198,4569.2,4568.6,0.3592]
[1756393459955,0.6112,4569.2,4569.1,0.253]
[1756393460156,1.13250468,4569.2,4569.1,0.6122]
[1756393462261,1.13250468,4569.2,4568.5,3.2078]
[1756393462455,0.3739,4568.5,4567.8,0.3592]
[1756393462761,3.2078,4569.4,4567.4,3.2078]
[1756393462762,0.6112,4567.9,4567.4,3.2078]
[1756393462959,3.2078,4568.9,4567.4,3.567]
[1756393463161,0.3739,4568.7,4567.4,3.2078]
[1756393463367,0.3739,4568.5,4567.5,0.3592]
[1756393463555,0.3739,4568.3,4567.5,0.3592]
[1756393466371,0.6112,4568.9,4568.8,0.253]
[1756393466664,3.2078,4569.5,4568.8,0.6122]
[1756393466870,0.89487193,4569.4,4568.8,0.6122]
[1756393467072,0.6112,4569.2,4569.1,0.253]
[1756393467261,0.6112,4569.2,4569.1,0.6122]
[1756393467967,0.6112,4569.2,4568.5,0.3592]
[1756393468667,0.3739,4569.0,4568.2,3.2078]
[1756393468872,0.6112,4568.3,4568.2,0.253]
[1756393469171,0.3739,4568.2,4567.7,3.2078]
[1756393469365,0.2373,4567.8,4567.7,3.2078]
[1756393469568,0.6112,4567.8,4567.7,3.82]
[1756393469964,0.6112,4567.8,4567.7,3.4608]
[1756393470168,0.6112,4567.8,4567.7,3.2078]
[1756393470373,0.6112,4567.8,4567.4,31.535]
[1756393470572,0.2373,4567.5,4567.4,31.535]
[1756393470869,0.2373,4567.3,4567.2,3.567]
[1756393471074,0.6112,4567.3,4567.2,3.2078]
[1756393471463,0.6112,4567.3,4567.2,3.82]
[1756393471770,0.3739,4568.3,4567.3,0.3592]
[1756393471971,0.3739,4568.1,4567.3,0.3592]
[1756393472271,3.2078,4568.4,4567.2,3.4608]
[1756393472272,0.6112,4567.3,4567.2,3.4608]
[1756393472667,3.2078,4568.4,4567.2,3.82]
[1756393472862,0.3739,4568.2,4567.2,3.82]
[1756393473068,0.3739,4568.0,4567.2,3.82]
[1756393473369,0.3739,4568.0,4567.3,0.3592]
[1756393473572,0.6112,4568.0,4567.9,0.253]
[1756393474167,0.3739,4567.9,4567.6,0.3592]
[1756393474368,0.3739,4568.3,4567.6,0.6122]
[1756393474570,0.3739,4568.3,4567.2,3.2078]
[1756393474571,0.75874744,4568.2,4568.1,0.253]
[1756393474774,3.2078,4568.9,4568.2,0.3592]
[1756393474971,3.2078,4568.9,4568.7,0.253]
[1756393475274,3.5817,4568.9,4568.8,0.6122]
[1756393475470,0.3739,4569.3,4568.8,0.6122]
[1756393475674,0.3739,4569.4,4568.8,0.6122]
[1756393475864,0.5782,4569.2,4569.1,0.2448]
[1756393476064,3.2078,4569.5,4569.1,0.2448]
[1756393476264,3.2078,4569.5,4569.3,0.2448]
[1756393476265,0.5782,4569.4,4569.3,0.2448]
[1756393476568,0.5782,4569.4,4568.8,3.2078]
[1756393476769,0.5782,4569.4,4568.8,0.3547]
[1756393477074,3.2078,4569.5,4568.3,20.4737]
[1756393477267,0.3404,4569.2,4568.3,0.3547]
[1756393478970,0.5782,4569.2,4569.1,0.2448]
[1756393479774,3.5482,4570.1,4569.4,0.5995]
[1756393480275,3.5482,4570.1,4569.5,0.3547]
[1756393480481,3.786,4570.1,4570.0,0.5995]
[1756393480780,0.3404,4570.5,4570.0,0.5995]
[1756393480973,3.2078,4570.6,4570.0,0.2448]
[1756393481177,3.2078,4570.6,4569.8,0.3547]
[1756393481178,0.5782,4570.1,4569.8,0.3547]
[1756393481375,0.5782,4569.8,4569.2,3.2078]
[1756393481577,0.5782,4569.3,4569.2,3.2078]
[1756393481979,0.5782,4569.3,4568.6,3.2078]
[1756393482173,0.3404,4569.2,4568.6,3.2078]
[1756393482578,0.3404,4569.2,4569.1,0.5995]
[1756393485183,0.3404,4570.4,4569.7,0.3547]
[1756393485785,0.5782,4569.8,4569.7,0.3547]
[1756393486480,3.2078,4570.5,4569.2,0.3547]
[1756393486676,0.5782,4569.2,4569.1,3.2078]
[1756393486977,0.2378,4568.7,4568.6,3.2078]
[1756393487183,0.5782,4568.7,4568.6,3.2078]
[1756393488180,0.5782,4568.7,4568.6,3.8073]
[1756393488378,0.3404,4569.4,4568.6,3.8073]
[1756393488985,3.2078,4569.5,4568.6,3.8073]
[1756393489185,0.3404,4569.4,4568.6,3.8073]
[1756393489383,3.2078,4569.5,4568.6,3.8073]
[1756393489886,0.3404,4569.4,4568.6,3.8073]
[1756393490084,0.3404,4569.4,4568.7,0.3547]
[1756393490287,0.3404,4569.4,4569.3,0.2448]
[1756393490480,3.2078,4570.1,4569.4,0.3547]
[1756393490689,3.2078,4570.1,4570.0,0.5995]
[1756393491487,3.786,4570.1,4570.0,0.5995]
[1756393492082,3.4456,4570.1,4569.2,40.8]
[1756393492282,0.3404,4570.0,4569.3,0.3547]
[1756393494485,0.3404,4570.0,4569.9,0.5995]
[1756393494887,0.5782,4570.0,4569.9,0.2448]
[1756393495088,0.2378,4570.0,4569.1,3.2078]
[1756393495290,0.5782,4570.0,4569.3,0.3547]
[1756393496289,0.5782,4570.0,4569.1,3.2078]
[1756393496290,0.3404,4570.5,4569.7,0.3547]
[1756393497299,0.5782,4570.5,4570.4,0.2448]
[1756393497501,0.5782,4570.5,4570.4,0.5995]
[1756393498802,0.5782,4570.5,4570.0,0.3547]
[1756393499006,0.3404,4570.4,4569.7,0.3547]
[1756393499801,0.2378,4569.8,4569.7,0.5995]
[1756393499997,0.2378,4569.8,4569.3,0.3547]
[1756393500196,0.2378,4569.4,4569.3,0.3547]
[1756393500398,0.2378,4569.4,4569.1,3.2078]
[1756393500702,0.5782,4569.2,4569.1,3.2078]
[1756393501194,0.5782,4569.2,4568.1,0.394]
[1756393501195,0.3404,4568.5,4567.9,3.5625]
[1756393501397,0.5782,4568.0,4567.9,3.2078]
[1756393501596,0.3404,4568.3,4567.9,0.5995]
[1756393501901,0.3404,4568.5,4567.5,0.3547]
[1756393502093,0.3404,4568.5,4568.4,0.5995]
[1756393502296,0.5782,4568.5,4567.4,3.39673418]
[1756393502499,0.5782,4568.5,4567.4,3.2078]
[1756393502694,0.3404,4568.5,4567.4,3.2078]
[1756393503095,0.5782,4567.5,4567.4,3.2078]
[1756393503297,0.3404,4567.4,4567.1,0.3547]
[1756393503498,0.2378,4567.2,4567.1,0.3547]
[1756393503703,0.2378,4567.2,4567.1,0.5995]
[1756393503704,0.5782,4567.2,4567.1,0.5995]
[1756393504002,0.3404,4567.7,4567.1,0.5995]
[1756393504799,3.2078,4568.6,4568.1,0.3547]
[1756393505003,3.2078,4568.6,4567.4,3.2078]
[1756393505004,0.2378,4568.2,4567.5,0.3547]
[1756393505306,0.2378,4568.2,4568.1,0.2448]
[1756393505503,0.5782,4568.2,4568.1,0.5995]
[1756393505907,3.2078,4568.6,4568.1,0.5995]
[1756393506108,3.2078,4568.6,4567.4,3.2078]
[1756393506109,0.5638,4568.3,4568.2,0.5745]
[1756393506309,0.5638,4568.3,4568.2,0.2328]
[1756393506507,0.5638,4568.3,4567.4,3.2078]
[1756393506808,0.19904761,4568.2,4568.1,0.5745]
[1756393507404,0.19904761,4568.2,4568.1,4.5745]
[1756393508209,3.5433,4569.6,4568.5,0.1426]
[1756393508403,3.7716,4569.6,4569.5,0.2282]
[1756393508601,0.3355,4569.5,4568.4,0.1426]
[1756393508800,3.2078,4568.9,4568.0,3.3504]
[1756393509104,0.21888001,4569.4,4568.0,3.3504]
[1756393509408,0.2283,4568.1,4568.0,3.3504]
[1756393509610,0.5638,4568.1,4568.0,3.3504]
[1756393509807,0.5638,4568.1,4568.0,3.2078]
[1756393510005,0.5638,4568.1,4567.6,0.1426]
[1756393510006,0.3355,4568.0,4567.2,3.2078]
[1756393510207,0.5638,4567.3,4567.2,3.2078]
[1756393511107,0.5638,4567.3,4566.7,3.2078]
[1756393511611,3.2078,4567.5,4566.7,3.2078]
[1756393511807,0.5638,4566.8,4566.7,3.5775]
[1756393512014,0.5638,4566.8,4566.7,3.4353]
[1756393512407,0.5638,4566.8,4566.7,3.5775]
[1756393512717,0.3355,4566.8,4566.7,3.5775]
[1756393513014,0.5638,4566.8,4566.7,3.5775]
[1756393513412,0.5638,4566.8,4566.7,3.2078]
[1756393514212,0.5638,4566.3,4566.2,3.2078]
[1756393514511,0.5638,4566.3,4564.3,0.98581]
[1756393514512,3.2078,4567.0,4565.7,3.2078]
[1756393514715,0.5638,4565.8,4565.7,3.2078]
[1756393516012,0.5638,4565.8,4565.7,3.5775]
[1756393516410,0.3355,4566.3,4565.7,3.5775]
[1756393516611,3.2078,4566.5,4566.4,0.3697]
[1756393516917,0.3355,4567.0,4566.2,3.2078]
[1756393517110,0.3355,4567.0,4566.9,0.3697]
[1756393517305,0.3355,4567.0,4566.2,3.2078]
[1756393517306,0.5638,4567.0,4566.3,0.1422]
[1756393519217,0.5638,4567.0,4566.9,0.2275]
[1756393519415,3.2078,4567.1,4567.0,0.1422]
[1756393519717,3.2078,4567.1,4566.2,3.2078]
[1756393519718,3.7716,4567.1,4566.2,3.2078]
[1756393519913,3.2078,4567.1,4566.3,3.2078]
[1756393520121,0.3355,4567.0,4566.4,0.1422]
[1756393520315,0.19548452,4566.9,4566.3,3.2078]
[1756393520520,0.19548452,4566.8,4566.7,0.3697]
[1756393521714,0.3355,4566.7,4566.3,3.35]
[1756393521919,3.2078,4567.6,4566.3,3.2078]
[1756393521920,0.5638,4566.4,4566.3,3.2078]
[1756393522114,0.3355,4566.3,4566.2,3.2078]
[1756393522311,0.19548452,4566.3,4566.2,3.5775]
[1756393523226,0.75928452,4566.3,4566.2,3.2078]
[1756393523426,0.3355,4566.2,4565.7,3.35]
[1756393523723,0.5638,4565.8,4565.7,3.2078]
[1756393523925,0.19548452,4565.8,4565.7,3.5775]
[1756393524322,0.19548452,4565.8,4565.7,3.4353]
[1756393524524,0.42378452,4565.8,4565.7,3.4353]
[1756393524718,0.75928452,4565.8,4565.7,3.2078]
[1756393524917,0.75928452,4565.8,4565.7,0.2275]
[1756393525121,0.19548452,4565.8,4564.8,3.2078]
[1756393525422,0.19548452,4565.7,4564.8,3.2078]
[1756393525725,0.19548452,4565.6,4564.8,3.2078]
[1756393525924,0.3355,4565.4,4564.8,3.2078]
[1756393526121,0.5638,4564.9,4564.8,3.2078]
[1756393526924,0.2283,4564.9,4564.2,3.2078]
[1756393527123,3.2078,4565.5,4564.2,3.2078]
[1756393527320,0.5638,4564.2,4564.1,0.10078547]
[1756393528724,0.5638,4563.2,4563.1,3.2078]
[1756393529221,0.5638,4563.2,4562.6,0.243]
[1756393529222,0.3355,4563.1,4562.8,0.243]
[1756393529419,0.3355,4563.7,4562.8,0.243]
[1756393530222,0.3355,4564.7,4563.7,0.243]
[1756393530421,3.2078,4564.8,4563.9,3.2078]
[1756393530726,0.3355,4564.7,4564.0,0.243]
[1756393531127,0.2283,4563.6,4563.4,3.2078]
[1756393531324,3.2078,4564.3,4563.0,0.243]
[1756393531635,0.3355,4564.2,4563.0,0.243]
[1756393531823,0.3355,4564.2,4563.0,0.63744]
[1756393532127,0.3355,4564.2,4563.4,0.243]
[1756393532428,0.5638,4563.4,4563.3,3.2078]
[1756393532629,0.3355,4564.2,4563.3,3.6755]
[1756393532923,0.3355,4564.2,4563.4,0.2349]
[1756393533617,0.3355,4564.2,4563.4,0.4677]
[1756393534230,0.3355,4564.2,4563.4,0.2349]